fUST/lending_fUST_20250814
["ID","MTS","AMOUNT","RATE_DAILY","PERIOD"]
[379173057,1755176193659,-262.13766138,0.00016,2]
[379173058,1755176195969,-173.14330474,0.00015999,2]
[379173059,1755176195991,-147.46739537,0.00015999,2]
[379173060,1755176201572,-300.51169979,0.00015999,2]
[379173061,1755176204128,-164.32435643,0.00015999,2]
[379173062,1755176208773,-185.4545065,0.00015999,2]
[379173063,1755176212424,-312.73382983,0.00015999,2]
[379173064,1755176215920,-236.97560745,0.00015999,2]
[379173065,1755176215943,-90.39247312,0.00015999,2]
[379173066,1755176217494,-78.72376236,0.00015999,2]
[379173067,1755176217516,-287.7435152,0.00015999,2]
[379173068,1755176221142,-212.2564848,0.00015999,2]
[379173069,1755176221165,-80.43467325,0.00015999,2]
[379173070,1755176222790,-267.81692702,0.00015999,2]
[379173071,1755176224228,-251.60297646,0.00015999,2]
[379173072,1755176227364,-48.39702354,0.00015999,2]
[379173073,1755176227387,-117.89798548,0.00015999,2]
[379173074,1755176229689,-33.85041425,0.00015999,2]
[379173075,1755176229710,-149.74723308,0.00015999,2]
[379173076,1755176231129,-4.2014471,0.00015999,2]
[379173077,1755176231153,-179.98438531,0.00015999,2]
[379173078,1755176233723,-223.64322291,0.00015999,2]
[379173079,1755176236933,-166.9356753,0.00015999,2]
[379173080,1755176238430,-8.07661885,0.00015999,2]
[379173081,1755176238454,-224.62131133,0.00016,2]
[379173082,1755176239989,-207.86366708,0.00016,2]
[379173083,1755176241443,-263.97913976,0.00016,2]
[379173084,1755176243428,-260.3809857,0.00016,2]
[379173085,1755176244931,-203.2204041,0.00016,2]
[379173086,1755176247199,-566.29712547,0.00016,2]
[379173087,1755176248931,-337.26112357,0.00016,2]
[379173088,1755176254282,-442.69755408,0.00016,2]
[379173089,1755176255988,-455.81842423,0.00016,2]
[379173090,1755176257504,5000.0,0.00015358,2]
[379173091,1755176257528,5000.0,0.00015358,2]
[379173092,1755176257549,5000.0,0.00015358,2]
[379173093,1755176257570,5000.0,0.00015358,2]
[379173094,1755176257593,5000.0,0.00015358,2]
[379173095,1755176257614,5000.0,0.00015358,2]
[379173096,1755176257636,5000.0,0.00015358,2]
[379173097,1755176257657,5000.0,0.00015358,2]
[379173098,1755176257680,5000.0,0.00015358,2]
[379173099,1755176257702,5000.0,0.00015358,2]
[379173100,1755176257725,5000.0,0.00015358,2]
[379173101,1755176257746,5000.0,0.00015358,2]
[379173102,1755176257769,5000.0,0.00015358,2]
[379173103,1755176257791,5000.0,0.00015358,2]
[379173104,1755176257812,5000.0,0.00015358,2]
[379173105,1755176257833,5000.0,0.00015358,2]
[379173106,1755176257859,5000.0,0.00015358,2]
[379173107,1755176257880,5000.0,0.00015358,2]
[379173108,1755176257901,5000.0,0.00015358,2]
[379173109,1755176257923,5000.0,0.00015358,2]
[379173110,1755176257944,5000.0,0.00015358,2]
[379173111,1755176257965,5000.0,0.00015358,2]
[379173112,1755176257988,5000.0,0.00015358,2]
[379173113,1755176258009,5000.0,0.00015358,2]
[379173114,1755176258030,5000.0,0.00015358,2]
[379173115,1755176258052,5000.0,0.00015358,2]
[379173116,1755176258172,-222.61643756,0.00016,2]
[379173117,1755176261062,-168.16524064,0.00016,2]
[379173118,1755176263106,-464.00165026,0.00016,2]
[379173119,1755176267743,-368.1686374,0.00016,2]
[379173120,1755176269299,-300.0,0.00016,2]
[379173121,1755176271436,-312.04304855,0.00016,2]
[379173122,1755176273007,5000.0,0.00015801,2]
[379173123,1755176274562,-236.4076895,0.00016,2]
[379173124,1755176277078,-423.16353644,0.00016,2]
[379173125,1755176279028,-279.66814272,0.00016,2]
[379173126,1755176281098,-274.25291041,0.00016,2]
[379173127,1755176281132,5000.0,0.00015801,2]
[379173128,1755176283752,-223.73164722,0.00016,2]
[379173129,1755176285288,-300.0,0.00015999,2]
[379173130,1755176285312,-59.97063399,0.00016,2]
[379173131,1755176288121,-502.38880755,0.00016,2]
[379173132,1755176289283,5000.0,0.00015801,2]
[379173133,1755176290048,-307.98756283,0.00016,2]
[379173134,1755176292441,-359.75874173,0.00016,2]
[379173135,1755176297932,5000.0,0.00015801,2]
[379173136,1755176298051,-164.67628071,0.00016,2]
[379173137,1755176298137,3519.4994871,0.00015231,2]
[379173138,1755176299645,-195.41549437,0.00016,2]
[379173139,1755176302781,-165.35138601,0.00016,2]
[379173140,1755176304757,-286.07505217,0.00016,2]
[379173141,1755176306138,1480.5005129,0.00015801,2]
[379173142,1755176306165,3519.4994871,0.00015801,2]
[379173143,1755176308846,-395.6458207,0.00016,2]
[379173144,1755176310849,-239.00817221,0.00016,2]
[379173145,1755176313227,-222.66882131,0.00016,2]
[379173146,1755176314834,1480.5005129,0.00015801,2]
[379173147,1755176314860,3519.4994871,0.00015801,2]
[379173148,1755176316289,-265.04319423,0.00016,2]
[379173149,1755176319094,-302.13548031,0.00016,2]
[379173150,1755176323187,900.89329063,0.00015801,2]
[379173151,1755176323288,-156.19862792,0.00016,2]
[379173152,1755176326492,-204.70744097,0.00016,2]
[379173153,1755176328632,-284.70316621,0.00016,2]
[379173154,1755176331314,-200.36295635,0.00016,2]
[379173155,1755176331859,579.60722227,0.00015801,2]
[379173156,1755176331882,4420.39277773,0.00015801,2]
[379173157,1755176336240,-430.2493648,0.00016,2]
[379173158,1755176339946,-177.97258029,0.00016,2]
[379173159,1755176343211,-168.0,0.00016,2]
[379173160,1755176344666,-300.0,0.00015999,2]
[379173161,1755176344693,-38.708816,0.00016,2]
[379173162,1755176347824,-198.66499897,0.00016,2]
[379173163,1755176348554,579.60722227,0.00015801,2]
[379173164,1755176348577,4420.39277773,0.00015801,2]
[379173165,1755176351064,-424.92566139,0.00016,2]
[379173166,1755176353589,-160.90648147,0.00016,2]
[379173167,1755176355981,-152.701679,0.00016,2]
[379173168,1755176358190,-277.138039,0.00016,2]
[379173169,1755176358671,579.60722227,0.00015256,2]
[379173170,1755176358698,389.83745773,0.00015256,2]
[379173171,1755176360284,-172.19565159,0.00016,2]
[379173172,1755176363208,-155.05087573,0.00016,2]
[379173173,1755176364106,4610.16254227,0.00015801,2]
[379173174,1755176364130,389.83745773,0.00015801,2]
[379173175,1755176366405,-186.63622741,0.00016,2]
[379173176,1755176369815,-166.22773649,0.00016,2]
[379173177,1755176371418,-152.0,0.00016,2]
[379173178,1755176373355,-179.04757928,0.00016,2]
[379173179,1755176375225,-211.03874077,0.00016,2]
[379173180,1755176380104,-250.37310722,0.00016,2]
[379173181,1755176382143,-312.39285337,0.00016,2]
[379173182,1755176384328,-279.87533384,0.00016,2]
[379173183,1755176387088,-165.93516691,0.00016,2]
[379173184,1755176389310,-300.0,0.00016,2]
[379173185,1755176391900,-166.42584238,0.00016,2]
[379173186,1755176393892,-169.19780497,0.00016,2]
[379173187,1755176397167,-228.94649826,0.00015928,2]
[379173188,1755176398821,-163.43239508,0.00015928,2]
[379173189,1755176401555,-195.57392048,0.00015928,2]
[379173190,1755176413774,-122.39638003,0.00015928,2]
[379173191,1755176413796,-196.46010782,0.00015999,2]
[379173192,1755176416587,-103.53989218,0.00015999,2]
[379173193,1755176416611,-94.28301816,0.00015999,2]
[379173194,1755176418212,-205.71698184,0.00015999,2]
[379173195,1755176418237,-95.27779734,0.00015999,2]
[379173196,1755176420165,-178.93098434,0.00015999,2]
[379173197,1755176421665,-195.89323501,0.00015999,2]
[379173199,1755176468669,930.445942,0.00013699,2]
[379173206,1755176781105,210.60294784,0.00015553,2]
[379173207,1755176817389,3469.11365243,0.00015111,2]
[379173208,1755176817412,5000.0,0.00015111,2]
[379173209,1755176817436,1530.88634757,0.00015111,2]
[379173210,1755176830417,3469.11365243,0.00015801,2]
[379173211,1755176830440,1530.88634757,0.00015801,2]
[379173212,1755176846232,3469.11365243,0.00015801,2]
[379173213,1755176846256,1530.88634757,0.00015801,2]
[379173218,1755176963240,-1200.0,0.00015974,2]
[379173219,1755176963261,-272.0,0.00015975,2]
[379173220,1755176963282,-300.0,0.00015975,2]
[379173221,1755176963303,-1200.0,0.00015975,2]
[379173222,1755176963324,-300.0,0.00015975,2]
[379173223,1755176963345,-2000.0,0.00015976,2]
[379173224,1755176963366,-2000.0,0.00015976,2]
[379173225,1755176963387,-2000.0,0.00015997,2]
[379173226,1755176963408,-978.382,0.00015997,2]
[379173227,1755176963431,-5833.095662,0.00016,2]
[379173228,1755177020463,159.73834537,0.00015551,2]
[379173242,1755177035740,-160.77539051,0.000159,2]
[379173244,1755177035750,-160.77539051,0.00015911,2]
[379173245,1755177035760,-160.77539051,0.00015921,2]
[379173247,1755177035770,-160.77539051,0.00015932,2]
[379173248,1755177035779,-1200.0,0.00015974,2]
[379173249,1755177035789,-300.0,0.00015999,2]
[379173250,1755177035798,-1200.0,0.00015999,2]
[379173252,1755177035807,-1890.40772495,0.00016,2]
[379173254,1755177035819,-10210.29718397,0.00016,2]
[379173256,1755177035831,-61196.35677272,0.00016,2]
[379173258,1755177035840,-159.73834536,0.00016032,2]
[379173260,1755177035850,-186.65376027,0.00016117,2]
[379173262,1755177035859,-34226.62245323,0.00016119,2]
[379173264,1755177035869,-237.50997668,0.00016195,2]
[379173266,1755177035878,-654.81,0.00016228,3]
[379173268,1755177035887,-327.4,0.00016228,3]
[379173270,1755177035897,-163.7,0.00016228,3]
[379173271,1755177035906,-491.13,0.00016228,3]
[379173274,1755177035916,-22.45247425,0.00016237,2]
[379173275,1755177035925,-117944.94998433,0.00016238,2]
[379173278,1755177035937,-35104.84483931,0.00016238,2]
[379173280,1755177035948,-35499.99999645,0.00016238,2]
[379173282,1755177035959,-6241.8427521,0.00016238,2]
[379173299,1755177037647,548.05,0.00025999,120]
[379173325,1755177038304,-6563.2791009,0.00016238,2]
[379173341,1755177038482,-2025.55171312,0.00016238,2]
[379173342,1755177038493,-1169.87109239,0.00016238,2]
[379173343,1755177038503,-359.1962722,0.00016238,2]
[379173345,1755177038516,-353.72246964,0.00016238,2]
[379173346,1755177038543,-3678.45368625,0.00016238,2]
[379173456,1755177040355,-870.6123134,0.00016238,2]
[379173604,1755177042136,-486.3599631,0.00016238,2]
[379173606,1755177042148,-2156.44079756,0.00016238,2]
[379173609,1755177042161,-5608.58192421,0.00016238,2]
[379173611,1755177042172,-1595.8,0.00016238,2]
[379173614,1755177042190,-1898.33525543,0.00016238,2]
[379173616,1755177042202,-3176.07003808,0.00016238,2]
[379173789,1755177043803,-920.16,0.00016238,2]
[379173810,1755177043844,-5627.54226678,0.00016238,2]
[379173812,1755177044021,-200.0,0.00016295,2]
[379173814,1755177044031,-200.0,0.00016295,2]
[379173816,1755177044041,-200.0,0.00016295,2]
[379173818,1755177044051,-200.0,0.00016295,2]
[379173822,1755177044061,-200.0,0.00016295,2]
[379173825,1755177044071,-200.0,0.00016295,2]
[379173828,1755177044081,-237.50997664,0.00016368,2]
[379173831,1755177044091,-460.0,0.00016438,2]
[379173834,1755177044100,-460.0,0.00016438,2]
[379173837,1755177044110,-639.08,0.00016438,2]
[379173840,1755177044120,-460.0,0.00016438,2]
[379173843,1755177044130,-460.0,0.00016438,2]
[379173846,1755177044141,-460.0,0.00016438,2]
[379173850,1755177044152,-460.0,0.00016438,2]
[379173853,1755177044162,-477.34,0.00016438,2]
[379173856,1755177044173,-460.0,0.00016438,2]
[379173859,1755177044184,-460.0,0.00016438,2]
[379173862,1755177044194,-460.0,0.00016438,2]
[379173865,1755177044205,-544.56179385,0.00016438,2]
[379173868,1755177044215,-802.24,0.00016438,2]
[379173871,1755177044227,-460.0,0.00016438,2]
[379173874,1755177044238,-460.0,0.00016438,2]
[379173877,1755177044248,-460.0,0.00016438,2]
[379173878,1755177044259,-460.0,0.00016438,2]
[379173880,1755177044270,-460.0,0.00016438,2]
[379173882,1755177044280,-460.0,0.00016438,2]
[379173885,1755177044291,-460.0,0.00016438,2]
[379173886,1755177044302,-460.0,0.00016438,2]
[379173889,1755177044312,-230.86277338,0.00016438,2]
[379173891,1755177044325,-460.0,0.00016438,2]
[379173893,1755177044335,-460.0,0.00016438,2]
[379173895,1755177044345,-306.9637536,0.00016438,2]
[379173897,1755177044355,-464.3,0.00016438,2]
[379173898,1755177044365,-460.0,0.00016438,2]
[379173901,1755177044375,-573.14,0.00016438,2]
[379173902,1755177044385,-460.0,0.00016438,2]
[379173904,1755177044395,-460.0,0.00016438,2]
[379173906,1755177044406,-583.5,0.00016438,2]
[379173908,1755177044416,-663.49,0.00016438,2]
[379173910,1755177044426,-460.0,0.00016438,2]
[379173912,1755177044436,-460.0,0.00016438,2]
[379173914,1755177044447,-460.0,0.00016438,2]
[379173916,1755177044457,-460.0,0.00016438,2]
[379173918,1755177044468,-460.0,0.00016438,2]
[379173920,1755177044479,-460.0,0.00016438,2]
[379173922,1755177044490,-460.0,0.00016438,2]
[379173924,1755177044500,-503.29,0.00016438,2]
[379173926,1755177044510,-460.0,0.00016438,2]
[379173928,1755177044521,-517.21,0.00016438,2]
[379173930,1755177044532,-835.84,0.00016438,2]
[379173932,1755177044542,-460.0,0.00016438,2]
[379173934,1755177044553,-460.0,0.00016438,2]
[379173936,1755177044564,-607.52176444,0.00016438,2]
[379173938,1755177044574,-460.0,0.00016438,2]
[379173940,1755177044585,-460.0,0.00016438,2]
[379173942,1755177044595,-460.0,0.00016438,2]
[379173944,1755177044605,-460.0,0.00016438,2]
[379173946,1755177044615,-460.0,0.00016438,2]
[379173948,1755177044626,-167.47857512,0.00016438,2]
[379173950,1755177044640,-524.82,0.00016438,2]
[379173952,1755177044651,-462.41834735,0.00016438,2]
[379173954,1755177044662,-380.18313724,0.00016438,2]
[379173956,1755177044672,-460.0,0.00016438,2]
[379173959,1755177044683,-1005.7,0.00016438,2]
[379173960,1755177044693,-496.93,0.00016438,2]
[379173963,1755177044703,-587.51,0.00016438,2]
[379173964,1755177044715,-460.0,0.00016438,2]
[379173967,1755177044727,-129.1518446,0.00016438,2]
[379173969,1755177044742,-244.83080186,0.00016438,2]
[379173971,1755177044752,-460.0,0.00016438,2]
[379173973,1755177044762,-500.0,0.00016438,2]
[379173975,1755177044772,-460.0,0.00016438,2]
[379173977,1755177044783,-500.0,0.00016438,2]
[379173979,1755177044794,-500.0,0.00016438,2]
[379173981,1755177044804,-500.0,0.00016438,2]
[379173983,1755177044815,-500.0,0.00016438,2]
[379173985,1755177044825,-500.0,0.00016438,2]
[379173987,1755177044835,-500.0,0.00016438,2]
[379173989,1755177044846,-460.0,0.00016438,2]
[379173991,1755177044856,-487.22,0.00016438,2]
[379173993,1755177044866,-460.0,0.00016438,2]
[379173995,1755177044875,-1162.4,0.00016438,2]
[379173997,1755177044885,-460.0,0.00016438,2]
[379173998,1755177044896,-297.24304698,0.00016438,2]
[379174001,1755177044906,-623.23,0.00016438,2]
[379174003,1755177044916,-324.54945153,0.00016438,2]
[379174004,1755177044927,-460.0,0.00016438,2]
[379174006,1755177044936,-460.0,0.00016438,2]
[379174009,1755177044946,-368.0,0.00016438,2]
[379174010,1755177044956,-460.0,0.00016438,2]
[379174013,1755177044965,-460.0,0.00016438,2]
[379174014,1755177044977,-460.0,0.00016438,2]
[379174016,1755177044991,-281.52669963,0.00016438,2]
[379174017,1755177045016,-178.47330037,0.00016438,2]
[379174018,1755177045027,-460.0,0.00016438,2]
[379174019,1755177045036,-460.0,0.00016438,2]
[379174020,1755177045045,-460.0,0.00016438,2]
[379174021,1755177045055,-440.54791943,0.00016438,2]
[379174022,1755177045064,-460.0,0.00016438,2]
[379174023,1755177045074,-705.52,0.00016438,2]
[379174024,1755177045083,-460.0,0.00016438,2]
[379174025,1755177045093,-1107.02,0.00016438,2]
[379174026,1755177045103,-460.0,0.00016438,2]
[379174027,1755177045112,-460.0,0.00016438,2]
[379174028,1755177045122,-460.0,0.00016438,2]
[379174029,1755177045131,-668.97,0.00016438,2]
[379174030,1755177045141,-460.0,0.00016438,2]
[379174031,1755177045152,-460.0,0.00016438,2]
[379174032,1755177045162,-460.0,0.00016438,2]
[379174033,1755177045171,-460.0,0.00016438,2]
[379174034,1755177045182,-460.0,0.00016438,2]
[379174035,1755177045191,-460.0,0.00016438,2]
[379174036,1755177045200,-460.0,0.00016438,2]
[379174037,1755177045210,-460.0,0.00016438,2]
[379174038,1755177045220,-674.27,0.00016438,2]
[379174039,1755177045231,-460.0,0.00016438,2]
[379174040,1755177045241,-815.19,0.00016438,2]
[379174041,1755177045250,-5080.19,0.00016438,2]
[379174042,1755177045259,-460.0,0.00016438,2]
[379174043,1755177045269,-460.0,0.00016438,2]
[379174044,1755177045278,-551.3498,0.00016438,2]
[379174045,1755177045288,-460.0,0.00016438,2]
[379174046,1755177045297,-460.0,0.00016438,2]
[379174047,1755177045307,-460.0,0.00016438,2]
[379174048,1755177045316,-788.06,0.00016438,2]
[379174049,1755177045326,-460.0,0.00016438,2]
[379174050,1755177045336,-460.0,0.00016438,2]
[379174051,1755177045346,-460.0,0.00016438,2]
[379174068,1755177045565,-460.0,0.00016438,2]
[379174071,1755177045576,-698.7,0.00016438,2]
[379174073,1755177045586,-460.0,0.00016438,2]
[379174074,1755177045595,-460.0,0.00016438,2]
[379174076,1755177045605,-460.0,0.00016438,2]
[379174078,1755177045614,-570.58,0.00016438,2]
[379174081,1755177045627,-460.0,0.00016438,2]
[379174082,1755177045641,-1670.51,0.00016438,2]
[379174084,1755177045652,-466.44,0.00016438,2]
[379174086,1755177045662,-577.08,0.00016438,2]
[379174088,1755177045673,-733.42,0.00016438,2]
[379174091,1755177045684,-460.0,0.00016438,2]
[379174092,1755177045693,-52.46869043,0.00016438,2]
[379174114,1755177045848,-740.35130957,0.00016438,2]
[379174116,1755177045859,-497.05063131,0.00016438,2]
[379174118,1755177045872,-818.74936869,0.00016438,2]
[379174120,1755177045882,-423.0720558,0.00016438,2]
[379174122,1755177045892,-263.08804692,0.00016438,2]
[379174173,1755177046370,-345.97424593,0.00016195,2]
[379174175,1755177046389,-756.82,0.00016428,3]
[379174177,1755177046399,-1032.28195308,0.00016438,2]
[379174179,1755177046410,-3220.30764619,0.00016438,2]
[379174269,1755177047301,-22.11235381,0.00016438,2]
[379174271,1755177047310,-612.74,0.00016438,2]
[379174273,1755177047320,-460.0,0.00016438,2]
[379174275,1755177047329,-35.94764569,0.00016438,2]
[379174672,1755177052750,1167.69155971,0.00015801,2]
[379175079,1755177212204,200.0,0.00025754,120]
[379175080,1755177259046,2141.68374735,0.00015575,2]
[379175081,1755177259071,1119.18209325,0.00015575,2]
[379175082,1755177317807,484.72234,0.00015084,2]
[379175083,1755177451265,3396.09556675,0.00015799,2]
[379175084,1755177451289,2327.10341089,0.00015799,2]
[379175085,1755177471072,1119.10160929,0.00015801,2]
[379175086,1755177500161,169.748389,0.00015098,2]
[379175088,1755177624504,883.923644,0.00013699,2]
[379175091,1755177735420,500.12294682,0.00015799,2]
[379175092,1755177735445,4507.67615858,0.00015799,2]
[379175094,1755177740073,492.32384142,0.00015801,2]
[379175095,1755177740098,3388.57454929,0.00015801,2]
[379175098,1755177962349,1611.42545071,0.00014941,2]
[379175099,1755177962373,5000.0,0.00014941,2]
[379175100,1755177962398,3388.57454929,0.00014941,2]
[379175101,1755177977958,1611.42545071,0.00015801,2]
[379175102,1755177977983,3388.57454929,0.00015801,2]
[379175113,1755178012124,-225.21557652,0.0001589,3]
[379175114,1755178023928,1611.42545071,0.00015799,2]
[379175115,1755178023953,2770.39876655,0.00015799,2]
[379175125,1755178040244,1796.94160929,0.00015801,2]
[379175181,1755178120471,372.47424995,0.000149,2]
[379175182,1755178120713,60.18537421,0.0001,2]
[379175183,1755178120736,939.81462579,0.0001,2]
[379175200,1755178126554,4060.18537421,0.0001,2]
[379175201,1755178126578,5000.0,0.0001,2]
[379175202,1755178126601,5000.0,0.0001,2]
[379175203,1755178126622,3413.34831202,0.0001,2]
[379175208,1755178131519,1586.65168798,0.00015801,2]
[379175209,1755178131542,1616.40670273,0.00015801,2]
[379175210,1755178139588,927.05879991,0.00015801,2]
[379175217,1755178147925,2456.53449736,0.00015801,2]
[379175218,1755178147953,2543.46550264,0.00015801,2]
[379175331,1755178232681,-204.99442348,0.0001589,3]
[379175333,1755178232692,-215.11,0.0001589,3]
[379175335,1755178232702,-645.34,0.0001589,3]
[379175337,1755178232712,-1200.0,0.00015896,2]
[379175339,1755178232724,-1200.0,0.00015897,2]
[379175341,1755178232735,-211.68129813,0.00015897,2]
[379175343,1755178232747,-88.31870187,0.00015897,2]
[379175345,1755178232757,-300.0,0.00015897,2]
[379175347,1755178232767,-300.0,0.00015897,2]
[379175349,1755178232777,-300.0,0.00015898,2]
[379175352,1755178232787,-2272.09019393,0.00015899,2]
[379175355,1755178232800,-7427.38074131,0.00015899,2]
[379175358,1755178232812,-8649.10646443,0.00015899,2]
[379175361,1755178232822,-223.24389541,0.00015899,2]
[379175363,1755178232832,-169.08186693,0.00015899,2]
[379175365,1755178232842,-500.0,0.00015899,2]
[379175367,1755178232852,-500.0,0.00015899,2]
[379175369,1755178232862,-500.0,0.00015899,2]
[379175371,1755178232872,-500.0,0.00015899,2]
[379175373,1755178232882,-500.0,0.00015899,2]
[379175375,1755178232892,-471.15494887,0.00015899,2]
[379175377,1755178232901,-500.0,0.00015899,2]
[379175379,1755178232911,-182.86673587,0.00015899,2]
[379175381,1755178232922,-500.0,0.00015899,2]
[379175383,1755178232931,-500.0,0.00015899,2]
[379175385,1755178232941,-500.0,0.00015899,2]
[379175387,1755178232950,-500.0,0.00015899,2]
[379175389,1755178232960,-500.0,0.00015899,2]
[379175391,1755178232973,-500.0,0.00015899,2]
[379175393,1755178232985,-500.0,0.00015899,2]
[379175395,1755178232996,-500.0,0.00015899,2]
[379175397,1755178233005,-500.0,0.00015899,2]
[379175399,1755178233015,-475.3926,0.00015899,2]
[379175401,1755178233028,-500.0,0.00015899,2]
[379175403,1755178233038,-500.0,0.00015899,2]
[379175405,1755178233048,-500.0,0.00015899,2]
[379175407,1755178233059,-525.53003449,0.00015899,2]
[379175409,1755178233069,-500.0,0.00015899,2]
[379175411,1755178233080,-500.0,0.00015899,2]
[379175413,1755178233090,-500.0,0.00015899,2]
[379175415,1755178233101,-265.17985577,0.00015899,2]
[379175417,1755178233111,-23493.15266123,0.000159,2]
[379175419,1755178233123,-50204.19386485,0.000159,2]
[379175421,1755178233135,-17238.98081732,0.000159,2]
[379175423,1755178233148,-3629.40721525,0.000159,2]
[379175426,1755178233160,-14562.44782898,0.000159,2]
[379175428,1755178233171,-162407.25875583,0.000159,2]
[379175430,1755178233181,-211.42003281,0.00016,2]
[379175432,1755178233191,-1102.68803355,0.00016065,2]
[379175434,1755178233201,-250.0,0.00016092,2]
[379175436,1755178233210,-152.87880415,0.00016165,2]
[379175438,1755178233220,-14702.98813395,0.00016165,2]
[379175440,1755178233232,-200.0,0.00016215,2]
[379175442,1755178233242,-200.0,0.00016215,2]
[379175444,1755178233252,-200.0,0.00016215,2]
[379175446,1755178233263,-200.0,0.00016215,2]
[379175448,1755178233273,-200.0,0.00016215,2]
[379175450,1755178233284,-200.0,0.00016215,2]
[379175452,1755178233294,-1102.68803353,0.00016217,2]
[379175454,1755178233303,-1102.68803353,0.00016369,2]
[379175456,1755178233313,-16200.10869058,0.00016437,2]
[379175458,1755178233323,-460.0,0.00016438,2]
[379175460,1755178233334,-460.0,0.00016438,2]
[379175462,1755178233344,-460.0,0.00016438,2]
[379175464,1755178233353,-460.0,0.00016438,2]
[379175466,1755178233363,-466.92,0.00016438,2]
[379175468,1755178233373,-460.0,0.00016438,2]
[379175470,1755178233382,-460.0,0.00016438,2]
[379175472,1755178233393,-460.0,0.00016438,2]
[379175474,1755178233402,-460.0,0.00016438,2]
[379175476,1755178233413,-460.0,0.00016438,2]
[379175478,1755178233423,-460.0,0.00016438,2]
[379175480,1755178233432,-460.0,0.00016438,2]
[379175482,1755178233442,-460.0,0.00016438,2]
[379175484,1755178233452,-460.0,0.00016438,2]
[379175486,1755178233462,-3541.65980123,0.00016438,2]
[379175488,1755178233473,-460.0,0.00016438,2]
[379175490,1755178233483,-7960.76581822,0.00016438,2]
[379175492,1755178233493,-460.0,0.00016438,2]
[379175494,1755178233503,-5791.55626349,0.00016438,2]
[379175496,1755178233513,-460.0,0.00016438,2]
[379175498,1755178233523,-460.0,0.00016438,2]
[379175500,1755178233533,-460.0,0.00016438,2]
[379175502,1755178233543,-460.0,0.00016438,2]
[379175504,1755178233552,-460.0,0.00016438,2]
[379175506,1755178233562,-460.0,0.00016438,2]
[379175508,1755178233574,-460.0,0.00016438,2]
[379175510,1755178233584,-759.78,0.00016438,2]
[379175512,1755178233594,-460.0,0.00016438,2]
[379175514,1755178233603,-460.0,0.00016438,2]
[379175516,1755178233612,-460.0,0.00016438,2]
[379175518,1755178233622,-460.0,0.00016438,2]
[379175520,1755178233631,-468.32217539,0.00016438,2]
[379175522,1755178233641,-460.0,0.00016438,2]
[379175524,1755178233650,-460.0,0.00016438,2]
[379175526,1755178233659,-460.0,0.00016438,2]
[379175528,1755178233669,-460.0,0.00016438,2]
[379175530,1755178233679,-460.0,0.00016438,2]
[379175532,1755178233689,-460.0,0.00016438,2]
[379175534,1755178233698,-460.0,0.00016438,2]
[379175536,1755178233708,-460.0,0.00016438,2]
[379175538,1755178233719,-460.0,0.00016438,2]
[379175540,1755178233730,-460.0,0.00016438,2]
[379175543,1755178233741,-460.0,0.00016438,2]
[379175545,1755178233751,-460.0,0.00016438,2]
[379175547,1755178233761,-460.0,0.00016438,2]
[379175549,1755178233772,-460.0,0.00016438,2]
[379175551,1755178233782,-460.0,0.00016438,2]
[379175553,1755178233791,-460.0,0.00016438,2]
[379175555,1755178233801,-460.0,0.00016438,2]
[379175557,1755178233811,-463.71266441,0.00016438,2]